bitfinex-derivatives/quotes_BTCF0:USTF0_20251220
["timestamp","ask_amount","ask_price","bid_price","bid_amount"]
[1766198057911,0.00406987,88203.0,88194.0,0.0113448]
[1766198058112,0.00974987,88203.0,88194.0,0.0113448]
[1766198058309,0.00406987,88203.0,88194.0,0.0113448]
[1766198058613,0.00974987,88203.0,88194.0,0.0113448]
[1766198059918,0.00406987,88203.0,88194.0,0.0113448]
[1766198060100,0.00974987,88203.0,88194.0,0.0113448]
[1766198062509,0.00406987,88203.0,88194.0,0.0113448]
[1766198062809,0.00974987,88203.0,88194.0,0.0113448]
[1766198063617,0.00406987,88203.0,88194.0,0.0113448]
[1766198063916,0.00974987,88203.0,88194.0,0.0113448]
[1766198064909,0.00406987,88203.0,88194.0,0.0113448]
[1766198065410,0.00974987,88203.0,88194.0,0.0113448]
[1766198066317,0.00406987,88203.0,88194.0,0.0113448]
[1766198066520,0.00974987,88203.0,88194.0,0.0113448]
[1766198066917,0.00568,88203.0,88194.0,0.0113448]
[1766198067118,1.13e-06,88204.0,88194.0,0.0113448]
[1766198068415,0.00568,88204.0,88194.0,0.0113448]
[1766198069316,0.00732523,88207.0,88194.0,0.0113448]
[1766198069514,0.00568,88204.0,88194.0,0.0113448]
[1766198071727,0.00732523,88207.0,88194.0,0.0113448]
[1766198071923,0.01321781,88205.0,88194.0,0.0113448]
[1766198083831,0.00753781,88205.0,88194.0,0.0113448]
[1766198084232,0.00568,88204.0,88194.0,0.0113448]
[1766198086834,0.00753781,88205.0,88194.0,0.0113448]
[1766198087026,0.00568,88204.0,88194.0,0.0113448]
[1766198087435,0.00753781,88205.0,88194.0,0.0113448]
[1766198087636,0.00568,88204.0,88194.0,0.0113448]
[1766198089738,5e-08,88207.0,88195.0,0.00568]
[1766198089928,1e-08,88208.0,88202.0,0.0113438]
[1766198094229,1e-08,88208.0,88198.0,0.0113442]
[1766198094429,1e-08,88208.0,88196.0,0.00017013]
[1766198094931,1e-08,88208.0,88197.0,0.0113444]
[1766198097339,1e-08,88208.0,88198.0,0.16982387]
[1766198097546,0.00830425,88221.0,88198.0,0.16982387]
[1766198097745,0.00830425,88221.0,88210.0,0.16982387]
[1766198098043,5e-08,88221.0,88214.0,0.0113422]
[1766198098234,5e-08,88221.0,88211.0,0.00568]
[1766198099648,0.00568,88220.0,88211.0,0.00568]
[1766198101334,0.00568,88220.0,88204.0,0.00568]
[1766198101941,5e-08,88221.0,88204.0,0.00568]
[1766198102447,0.00568,88220.0,88204.0,0.00568]
[1766198102945,0.00568,88220.0,88205.0,0.0113434]
[1766198103137,5e-08,88221.0,88205.0,0.0113434]
[1766198103336,0.00568,88219.0,88205.0,0.0113434]
[1766198104641,0.00568,88219.0,88204.0,0.00568]
[1766198105152,0.00568,88219.0,88201.0,0.0113438]
[1766198105153,0.00568,88219.0,88196.0,0.01151473]
[1766198105342,0.00568,88219.0,88197.0,0.00356]
[1766198105537,0.0113426,88212.0,88196.0,0.00017013]
[1766198105745,0.00568,88211.0,88197.0,0.00568]
[1766198106645,0.00568,88211.0,88196.0,0.00017013]
[1766198106842,5e-08,88221.0,88196.0,0.00017013]
[1766198107045,0.0113416,88219.0,88196.0,0.00017013]
[1766198107253,0.00568,88220.0,88196.0,0.00017013]
[1766198107642,0.00568,88220.0,88197.0,0.0113444]
[1766198107842,0.00568,88220.0,88196.0,0.00017013]
[1766198108044,0.00568,88220.0,88197.0,0.0113444]
[1766198113462,0.17549879,88220.0,88200.0,0.16981879]
[1766198115364,0.17549879,88220.0,88200.0,0.18116279]
[1766198116962,0.00568,88220.0,88200.0,0.18116279]
[1766198117163,0.17549879,88220.0,88200.0,0.18116279]
[1766198117859,0.17549879,88220.0,88200.0,0.011344]
[1766198118467,0.00568,88220.0,88200.0,0.011344]
[1766198118668,0.17549451,88220.0,88200.0,0.18115851]
[1766198120064,0.18683611,88220.0,88200.0,0.16981451]
[1766198121459,0.18683611,88220.0,88199.0,0.0113441]
[1766198122760,0.18683611,88220.0,88200.0,0.16981451]
[1766198128480,0.0170216,88220.0,88200.0,0.16981451]
[1766198128678,0.18683611,88220.0,88199.0,0.0113441]
[1766198129676,0.17549451,88220.0,88199.0,0.0113441]
[1766198131086,0.17549451,88220.0,88202.0,0.0113438]
[1766198131276,0.17549451,88220.0,88200.0,0.16981451]
[1766198132189,0.00568,88220.0,88200.0,0.16981451]
[1766198132487,0.16981451,88220.0,88200.0,0.16981451]
[1766198132688,0.00568,88219.0,88200.0,0.16981451]
[1766198133088,0.00568,88218.0,88200.0,0.16981451]
[1766198133289,0.00568,88217.0,88200.0,0.16981451]
[1766198133585,0.00568,88216.0,88200.0,0.16981451]
[1766198134088,0.16981451,88220.0,88200.0,0.16981451]
[1766198134291,0.00568,88219.0,88200.0,0.16981451]
[1766198134486,0.16981451,88220.0,88200.0,0.16981451]
[1766198134686,0.00568,88219.0,88200.0,0.16981451]
[1766198134874,0.00568,88218.0,88200.0,0.16981451]
[1766198135080,0.16981451,88220.0,88200.0,0.16981451]
[1766198135479,0.00568,88219.0,88200.0,0.16981451]
[1766198135679,0.0170216,88219.0,88198.0,0.0113442]
[1766198135883,0.0170216,88219.0,88200.0,0.16981451]
[1766198136389,0.0170216,88219.0,88198.0,0.0113442]
[1766198137592,0.00568,88219.0,88197.0,0.00568]
[1766198137889,0.011344,88201.0,88196.0,3e-08]
[1766198138090,0.16981451,88210.0,88196.0,3e-08]
[1766198138091,0.00568,88202.0,88196.0,3e-08]
[1766198139185,5e-08,88221.0,88196.0,3e-08]
[1766198139375,0.00568,88220.0,88200.0,0.0113439]
[1766198139579,0.17549451,88220.0,88200.0,0.18115841]
[1766198139788,0.17549451,88220.0,88200.0,0.16981451]
[1766198141190,0.00568,88220.0,88200.0,0.18115851]
[1766198141384,0.17549451,88220.0,88200.0,0.18115851]
[1766198141691,0.0113416,88219.0,88200.0,0.16981451]
[1766198142274,0.0113421,88216.0,88196.0,3e-08]
[1766198142587,0.17549451,88220.0,88197.0,0.0113443]
[1766198142588,0.00568,88215.0,88197.0,0.0113443]
[1766198145089,0.00568,88215.0,88200.0,0.011344]
[1766198145290,0.00568,88215.0,88196.0,3e-08]
[1766198145590,0.0113428,88210.0,88196.0,3e-08]
[1766198145892,0.00568,88209.0,88196.0,3e-08]
[1766198155581,0.16981451,88210.0,88196.0,3e-08]
[1766198155786,0.00568,88209.0,88196.0,3e-08]
[1766198156489,0.16981451,88210.0,88196.0,3e-08]
[1766198156887,0.00568,88209.0,88196.0,3e-08]
[1766198157095,0.00568,88208.0,88196.0,3e-08]
[1766198157396,0.0113416,88219.0,88196.0,3e-08]
[1766198157795,0.00568,88218.0,88196.0,3e-08]
[1766198157991,0.0113416,88219.0,88196.0,3e-08]
[1766198158391,0.00568,88218.0,88196.0,3e-08]
[1766198158592,0.0113416,88219.0,88196.0,3e-08]
[1766198158994,0.00568,88218.0,88196.0,3e-08]
[1766198159190,0.16981451,88210.0,88196.0,3e-08]
[1766198159898,0.00568,88209.0,88196.0,3e-08]
[1766198161692,0.00568,88209.0,88197.0,0.0113444]
[1766198162490,0.00568,88208.0,88197.0,0.0113444]
[1766198163201,0.00568,88207.0,88196.0,3e-08]
[1766198163399,0.011342,88216.0,88196.0,3e-08]
[1766198163793,0.00568,88215.0,88196.0,3e-08]
[1766198163993,0.16981451,88210.0,88196.0,3e-08]
[1766198164188,0.00568,88209.0,88196.0,3e-08]
[1766198165702,0.16981451,88220.0,88196.0,3e-08]
[1766198165904,0.03361741,88219.0,88196.0,3e-08]
[1766198166103,0.02793741,88218.0,88196.0,3e-08]
[1766198166299,0.00568,88217.0,88200.0,0.16981451]
[1766198166489,0.00568,88216.0,88201.0,0.0113439]
[1766198166693,0.00568,88215.0,88204.0,0.0113434]
[1766198167698,0.16981451,88220.0,88204.0,0.0113434]
[1766198167903,0.00568,88219.0,88204.0,0.0113434]
[1766198168404,0.00568,88218.0,88204.0,0.0113434]
[1766198169109,0.16981451,88220.0,88204.0,0.0113434]
[1766198169301,5e-08,88221.0,88204.0,0.0113434]
[1766198169498,0.00568,88219.0,88204.0,0.0113434]
[1766198173302,0.16981451,88220.0,88204.0,0.0113434]
[1766198173498,0.00568,88218.0,88204.0,0.0113434]
[1766198179309,5e-08,88221.0,88204.0,0.0113434]
[1766198179512,0.00568,88220.0,88204.0,0.0113434]
[1766198180000,0.00568,88219.0,88204.0,0.0113434]
[1766198180811,0.00568,88219.0,88198.0,0.00568]
[1766198181809,5e-08,88221.0,88198.0,0.00568]
[1766198182011,0.00568,88218.0,88198.0,0.00568]
[1766198182511,0.00568,88217.0,88198.0,0.00568]
[1766198183211,0.00568,88216.0,88204.0,0.0113435]
[1766198185614,5e-08,88221.0,88198.0,0.00568]
[1766198185810,0.00568,88220.0,88208.0,0.011343]
[1766198186312,5e-08,88221.0,88208.0,0.011343]
[1766198186503,0.00568,88220.0,88208.0,0.011343]
[1766198187215,5e-08,88221.0,88208.0,0.011343]
[1766198187412,0.00568,88219.0,88208.0,0.011343]
[1766198187608,0.00568,88219.0,88198.0,0.00568]
[1766198187810,0.00568,88218.0,88200.0,0.16979004]
[1766198188313,0.00568,88217.0,88200.0,0.16979004]
[1766198188905,0.00568,88217.0,88207.0,0.011343]
[1766198190112,5e-08,88221.0,88207.0,0.011343]
[1766198190313,0.00568,88216.0,88207.0,0.011343]
[1766198190700,0.00568,88215.0,88207.0,0.011343]
[1766198190900,0.00568,88214.0,88207.0,0.011343]
[1766198198018,0.00568,88215.0,88207.0,0.011343]
[1766198199421,5e-08,88221.0,88207.0,0.011343]
[1766198199813,0.00568,88220.0,88207.0,0.011343]
[1766198200119,0.00568,88219.0,88207.0,0.011343]
[1766198200912,0.00568,88219.0,88203.0,0.0113436]
[1766198201313,0.00568,88219.0,88199.0,0.0113441]
[1766198202122,0.00568,88219.0,88198.0,0.00568]
[1766198202322,0.00568,88219.0,88198.0,0.0170242]
[1766198204013,0.16979004,88210.0,88196.0,3e-08]
[1766198204424,0.00568,88209.0,88196.0,3e-08]
[1766198204722,0.0113442,88199.0,88196.0,3e-08]
[1766198204921,0.0113444,88197.0,88171.0,1.44652]
[1766198205120,0.0113444,88197.0,88174.0,0.00894784]
[1766198205320,0.0113444,88197.0,88175.0,0.0113473]
[1766198205520,0.00568,88198.0,88175.0,0.0113473]
[1766198205824,0.00568,88198.0,88178.0,0.00017003]
[1766198207132,0.00568,88198.0,88178.0,0.01151683]
[1766198210117,0.00568,88198.0,88178.0,0.00017003]
[1766198210320,0.011345,88193.0,88178.0,0.00017003]
[1766198210621,0.0113454,88190.0,88178.0,0.00017003]
[1766198210829,0.00568,88189.0,88178.0,0.00017003]
[1766198211125,0.00568,88188.0,88178.0,0.00017003]
[1766198214832,0.00568,88188.0,88179.0,0.0113468]
[1766198216933,0.00568,88188.0,88178.0,0.00017003]
[1766198221833,0.0113442,88199.0,88178.0,0.00017003]
[1766198222137,0.0113446,88196.0,88178.0,0.00017003]
[1766198223539,0.011345,88193.0,88178.0,0.00017003]
[1766198225140,0.0113445,88197.0,88178.0,0.00017003]
[1766198229827,0.00568,88196.0,88178.0,0.00017003]
[1766198231244,0.00568,88196.0,88178.0,0.01151693]
[1766198234944,0.00568,88196.0,88175.0,0.0113472]
[1766198235546,0.00568,88196.0,88168.0,0.00568]
[1766198235547,0.00568,88196.0,88170.0,0.16989992]
[1766198235849,0.00017003,88192.0,88174.0,0.00017003]
[1766198236346,0.00017003,88192.0,88177.0,0.011347]
[1766198236548,0.00568,88191.0,88180.0,0.16989992]
[1766198238348,0.00568,88191.0,88181.0,0.0113465]
[1766198239646,0.00288,88190.0,88180.0,0.16989992]
[1766198239852,0.00288,88190.0,88184.0,0.0113461]
[1766198241054,0.00568,88190.0,88184.0,0.0113461]
[1766198241241,0.0028,88190.0,88184.0,0.0113461]
[1766198243538,3e-08,88192.0,88184.0,0.0113461]
[1766198243743,0.16989992,88210.0,88188.0,0.0113456]
[1766198243944,0.0335588,88209.0,88184.0,0.0113461]
[1766198244149,0.0278788,88208.0,88184.0,0.0113461]
[1766198244549,0.0392219,88208.0,88180.0,0.18124642]
[1766198244747,0.0113433,88206.0,88180.0,0.18124642]
[1766198244936,0.0278788,88205.0,88180.0,0.18124642]
[1766198245143,0.0278788,88204.0,88180.0,0.18124642]
[1766198245450,0.0335588,88203.0,88180.0,0.18124642]
[1766198245750,0.00568,88203.0,88180.0,0.18124642]
[1766198246552,0.0113433,88206.0,88180.0,0.18124642]
[1766198246749,0.00568,88202.0,88180.0,0.18124642]
[1766198248152,0.00568,88202.0,88183.0,0.0113462]
[1766198251556,0.00568,88202.0,88180.0,0.16989992]
[1766198252256,0.00568,88202.0,88180.0,0.18124642]
[1766198252453,0.16989992,88200.0,88179.0,0.00568]
[1766198252654,0.16989992,88200.0,88175.0,0.0113473]
[1766198253856,0.16989992,88200.0,88178.0,0.0113468]
[1766198254955,0.16988508,88200.0,88178.0,0.0113468]
[1766198260253,0.16988508,88200.0,88180.0,0.16988508]
[1766198261161,0.0113442,88199.0,88177.0,0.0113469]
[1766198263362,0.00568,88198.0,88177.0,0.0113469]
[1766198268471,0.00568,88198.0,88180.0,0.0113466]
[1766198272971,0.00568,88198.0,88178.0,0.0113469]
[1766198281288,0.00568,88198.0,88174.0,0.01683733]
[1766198283375,0.02789962,88197.0,88174.0,0.01683733]
[1766198283680,0.00568,88198.0,88174.0,0.01683733]
[1766198285385,0.02789923,88197.0,88174.0,0.01683733]
[1766198285684,0.00568,88198.0,88174.0,0.01683733]
[1766198285885,0.02789924,88197.0,88174.0,0.01683733]
[1766198286086,0.00568,88198.0,88174.0,0.01683733]
[1766198286384,0.00568,88198.0,88177.0,0.011347]
[1766198287897,0.00568,88198.0,88180.0,0.16988508]
[1766198288083,0.00568,88198.0,88177.0,0.011347]
[1766198288384,0.00568,88198.0,88180.0,0.16988508]
[1766198288583,0.00568,88198.0,88177.0,0.011347]
[1766198289086,0.00568,88198.0,88174.0,0.00549003]
[1766198289675,0.00568,88198.0,88175.0,0.0113472]
[1766198290882,0.00568,88198.0,88174.0,0.00549003]
[1766198291074,0.0113454,88190.0,88174.0,0.00549003]
[1766198291383,0.0113457,88188.0,88174.0,0.00549003]
[1766198291773,0.0170255,88189.0,88174.0,0.00549003]
[1766198292284,0.00568,88189.0,88174.0,0.00549003]
[1766198292788,0.0170255,88189.0,88174.0,0.00017003]
[1766198293281,0.00568,88189.0,88174.0,0.00017003]
[1766198297673,0.0170256,88189.0,88174.0,0.00017003]
[1766198299181,0.0113462,88184.0,88174.0,0.00017003]
[1766198299381,0.00568,88183.0,88174.0,0.00017003]
[1766198308592,0.0113468,88179.0,88174.0,3e-08]
[1766198308781,0.00568,88178.0,88174.0,3e-08]
[1766198338713,0.00017003,88185.0,88174.0,3e-08]
[1766198338910,0.00432,88184.0,88174.0,3e-08]
[1766198339908,0.00017003,88185.0,88174.0,3e-08]
[1766198340115,0.00568,88184.0,88174.0,3e-08]
[1766198340321,0.00568,88183.0,88174.0,3e-08]
[1766198356536,0.00017003,88185.0,88174.0,3e-08]
[1766198356738,0.16992805,88200.0,88174.0,3e-08]
[1766198356927,0.0113458,88187.0,88174.0,3e-08]
[1766198357126,0.00568,88186.0,88174.0,3e-08]
[1766198358437,0.0113464,88183.0,88174.0,3e-08]
[1766198359545,0.16995112,88184.0,88174.0,3e-08]
[1766198359746,0.00568,88186.0,88174.0,3e-08]
[1766198360241,0.011345,88193.0,88174.0,3e-08]
[1766198360544,0.00276,88192.0,88180.0,0.16995112]
[1766198360732,0.00276,88192.0,88174.0,3e-08]
[1766198363450,0.00276,88192.0,88175.0,0.0113472]
[1766198363951,0.06129573,88217.0,88174.0,3e-08]
[1766198363952,0.0113415,88220.0,88193.0,0.0113449]
[1766198364141,0.03346613,88219.0,88200.0,0.16995112]
[1766198364454,0.00568,88219.0,88200.0,0.16995112]
[1766198365346,0.0113418,88218.0,88198.0,0.00017003]
[1766198365545,0.0113418,88218.0,88176.0,1.4582671]
[1766198365546,0.0113429,88209.0,88182.0,0.0113464]
[1766198365739,0.16995112,88202.0,88183.0,0.00568]
[1766198366251,5e-08,88221.0,88190.0,0.16995112]
[1766198366448,0.00017003,88214.0,88197.0,0.00017003]
[1766198366651,0.00568,88213.0,88197.0,0.00017003]
[1766198368454,0.00568,88213.0,88200.0,0.16995112]
[1766198369153,0.00568,88213.0,88201.0,0.0113439]
[1766198370156,0.00585003,88214.0,88201.0,0.0113439]
[1766198370950,0.00017003,88214.0,88201.0,0.0113439]
[1766198371248,0.00585003,88214.0,88201.0,0.0113439]
[1766198373243,0.00017003,88214.0,88201.0,0.0113439]
[1766198374653,0.00017003,88214.0,88200.0,0.17563112]
[1766198375752,0.00017003,88214.0,88200.0,0.16995112]
[1766198380150,0.00017003,88214.0,88200.0,0.18129512]
[1766198385552,0.00017003,88214.0,88200.0,0.16995112]
[1766198387550,0.00017003,88214.0,88201.0,0.0113439]
[1766198388161,0.00017003,88214.0,88201.0,0.0170239]
[1766198394854,0.00017003,88214.0,88201.0,0.00568]
[1766198396362,5e-08,88221.0,88204.0,0.0113435]
[1766198396560,0.00568,88220.0,88201.0,0.00568]
[1766198396766,0.00568,88220.0,88202.0,0.0113437]
[1766198397965,0.0113417,88219.0,88198.0,0.0113442]
[1766198398166,0.16980472,88220.0,88201.0,0.0113438]
[1766198398365,0.00568,88219.0,88201.0,0.0113438]
[1766198398566,0.00568,88218.0,88201.0,0.0113438]
[1766198398759,0.00568,88218.0,88197.0,0.01151433]
[1766198399068,0.00568,88218.0,88200.0,0.011344]
[1766198399263,0.0170218,88218.0,88198.0,0.0113442]
[1766198399470,0.00568,88218.0,88198.0,0.0113442]
[1766198399655,0.00568,88218.0,88200.0,0.16980472]
[1766198400463,5e-08,88221.0,88208.0,0.16980472]
[1766198400668,0.00568,88217.0,88202.0,0.00568]
[1766198400968,0.00564,88217.0,88202.0,0.00568]
[1766198401162,0.00564,88217.0,88203.0,0.0113436]
[1766198401554,0.00564,88217.0,88202.0,0.00568]
[1766198402165,0.00564,88217.0,88202.0,0.0170238]
[1766198402770,5e-08,88221.0,88202.0,0.00568]
[1766198402962,0.00568,88216.0,88202.0,0.00568]
[1766198407976,0.00568,88216.0,88202.0,0.00564]
[1766198411876,0.0113421,88215.0,88197.0,0.00017003]
[1766198412073,0.18114722,88212.0,88197.0,0.00017003]
[1766198412273,0.00568,88216.0,88187.0,0.00228]
[1766198412274,0.16980472,88210.0,88187.0,0.00228]
[1766198412774,0.0113436,88204.0,88187.0,0.00228]
[1766198412976,0.16980472,88200.0,88180.0,0.16980472]
[1766198413176,0.0113449,88194.0,88181.0,0.00585003]
[1766198413368,0.00577003,88199.0,88181.0,0.00585003]
[1766198413369,0.0113448,88195.0,88181.0,0.00585003]
[1766198413879,0.0113448,88195.0,88181.0,0.00017003]
[1766198414280,0.01711423,88199.0,88181.0,0.00017003]
[1766198417885,0.00577003,88199.0,88181.0,0.00017003]
[1766198418076,0.00568,88198.0,88181.0,0.00017003]
[1766198422484,0.00568,88198.0,88181.0,0.01151653]
[1766198423276,0.00568,88198.0,88181.0,0.00017003]
[1766198424995,0.00568,88198.0,88181.0,3e-08]
[1766198425186,0.011345,88193.0,88181.0,3e-08]
[1766198435104,0.0113454,88190.0,88181.0,3e-08]
[1766198435298,0.00568,88189.0,88164.0,0.00144]
[1766198435600,0.0113458,88187.0,88165.0,0.0113485]
[1766198436301,0.0113458,88187.0,88167.0,0.00017003]
[1766198440404,0.00568,88188.0,88156.0,0.0113496]
[1766198440405,0.16989219,88180.0,88156.0,0.0113496]
[1766198440605,0.00568,88179.0,88159.0,0.0113493]
[1766198440794,0.00568,88179.0,88162.0,0.0113489]
[1766198441503,0.00585013,88179.0,88162.0,0.01151903]
[1766198445408,0.00585013,88179.0,88154.0,0.01135]
[1766198445601,0.0113473,88175.0,88150.0,0.0113504]
[1766198445796,0.0113473,88175.0,88148.0,0.00352]
[1766198445797,0.0113473,88175.0,88149.0,0.0113505]
[1766198446397,0.0113473,88175.0,88148.0,0.00352]
[1766198446398,0.01719693,88179.0,88154.0,0.0113499]
[1766198451014,0.0113472,88176.0,88154.0,0.0113499]
[1766198454918,0.00568,88175.0,88154.0,0.0113499]
[1766198456619,0.0113474,88174.0,88153.0,0.00017013]
[1766198458820,0.00568,88175.0,88154.0,0.0113499]
[1766198459726,0.00017013,88179.0,88157.0,0.0113495]
[1766198459922,0.00568,88178.0,88157.0,0.0113495]
[1766198460123,0.0113448,88195.0,88168.0,0.16999163]
[1766198460313,0.00891643,88222.0,88179.0,0.0113467]
[1766198460314,0.0113438,88202.0,88179.0,0.0113467]
[1766198460513,0.00352,88201.0,88179.0,0.0113467]
[1766198460718,0.00352,88201.0,88188.0,0.0113455]
[1766198460908,0.0113422,88215.0,88188.0,0.0113455]
[1766198461113,0.16999163,88220.0,88188.0,0.0113455]
[1766198461114,0.0113424,88213.0,88188.0,0.0113455]
[1766198461315,0.00017013,88210.0,88193.0,0.00017013]
[1766198461622,0.00568,88209.0,88193.0,0.00017013]
[1766198497149,0.00568,88209.0,88193.0,0.01151503]
[1766198500858,0.00017013,88210.0,88193.0,0.01151503]
[1766198501050,0.0333896,88209.0,88193.0,0.01151503]
[1766198501348,0.00568,88209.0,88193.0,0.01151503]
[1766198504151,0.00568,88209.0,88193.0,0.00017013]
[1766198507356,0.0170229,88209.0,88193.0,0.00017013]
[1766198508650,0.02770892,88208.0,88193.0,0.00017013]
[1766198508850,0.0170229,88209.0,88193.0,0.00017013]
[1766198509051,0.02770892,88208.0,88193.0,0.00017013]
[1766198509255,0.0170229,88209.0,88193.0,0.00017013]
[1766198509557,0.02770894,88208.0,88193.0,0.00017013]
[1766198509759,0.0170229,88209.0,88193.0,0.00017013]
[1766198509953,0.02769963,88208.0,88193.0,0.00017013]
[1766198510161,0.0170229,88209.0,88193.0,0.00017013]
[1766198511060,0.00568,88209.0,88193.0,0.00017013]
[1766198512049,0.00568,88209.0,88194.0,0.0113448]
[1766198522670,0.00568,88208.0,88194.0,0.0113448]
[1766198523367,0.00017013,88210.0,88193.0,0.00017013]
[1766198523572,0.00017013,88210.0,88200.0,0.16982991]
[1766198523775,0.00017013,88210.0,88201.0,0.0113439]
[1766198524374,0.00017013,88210.0,88193.0,0.00017013]
[1766198524675,0.00017013,88210.0,88170.0,0.16982991]
[1766198524972,0.18117531,88190.0,88170.0,0.16982991]
[1766198525189,0.0113458,88187.0,88164.0,1.44668]
[1766198525368,0.00568,88186.0,88165.0,0.00568]
[1766198525680,0.00017013,88184.0,88168.0,0.0113481]
[1766198526177,0.00017013,88184.0,88170.0,0.16991968]
[1766198526373,0.00017013,88184.0,88171.0,0.0113478]
[1766198528271,0.00017013,88184.0,88174.0,0.0113473]
[1766198528578,0.16991968,88200.0,88180.0,0.18126628]
[1766198528779,0.00288,88199.0,88180.0,0.18126628]
[1766198528966,0.00288,88199.0,88183.0,0.0113462]
[1766198529169,0.00288,88199.0,88186.0,0.0113458]
[1766198529571,0.00288,88199.0,88182.0,0.0113463]
[1766198531366,0.00288,88199.0,88181.0,0.00568]
[1766198531367,0.00288,88199.0,88185.0,0.0113459]
[1766198531584,0.00568,88200.0,88185.0,0.0113459]
[1766198532688,0.00585013,88201.0,88188.0,0.0113455]
[1766198533179,0.00017013,88201.0,88188.0,0.0113455]
[1766198534483,0.16991968,88200.0,88186.0,0.00017013]
[1766198537478,0.00017013,88201.0,88186.0,0.00017013]
[1766198540888,0.00017013,88201.0,88187.0,0.0113457]
[1766198545581,0.00017013,88201.0,88186.0,0.00017013]
[1766198550788,0.00017013,88201.0,88187.0,0.0113457]
[1766198551095,0.00017013,88201.0,88190.0,0.0113453]
[1766198552396,0.00017013,88201.0,88186.0,0.00017013]
[1766198559299,0.00891643,88222.0,88186.0,0.00017013]
[1766198559503,0.00869778,88230.0,88186.0,0.00017013]
[1766198559504,0.00869778,88230.0,88210.0,0.16986383]
[1766198559695,8e-08,88230.0,88223.0,0.011341]
[1766198559894,0.00568,88229.0,88221.0,0.0113413]
[1766198560207,1e-08,88234.0,88221.0,0.01146392]
[1766198560397,1.4580573,88253.0,88220.0,0.16986383]
[1766198560595,0.00568,88252.0,88220.0,0.16986383]
[1766198560802,0.00568,88252.0,88216.0,0.00017003]
[1766198561097,0.00116,88251.0,88216.0,0.01131812]
[1766198561299,0.00017003,88242.0,88225.0,0.0113407]
[1766198561494,0.00568,88241.0,88225.0,0.0113407]
[1766198562291,0.00568,88241.0,88216.0,0.01131812]
[1766198562292,0.00288,88240.0,88231.0,0.0113401]
[1766198562501,0.00144,88239.0,88231.0,0.0113401]
[1766198562807,0.00076,88239.0,88231.0,0.0113401]
[1766198562994,0.16986383,88260.0,88231.0,0.0113401]
[1766198563396,0.00568,88259.0,88237.0,0.00017003]
[1766198564004,0.00568,88258.0,88237.0,0.00017003]
[1766198571113,0.16986383,88260.0,88237.0,0.00017003]
[1766198571404,0.00568,88257.0,88237.0,0.00017003]
[1766198571796,0.16986383,88260.0,88237.0,0.00017003]
[1766198571997,0.00568,88259.0,88237.0,0.00017003]
[1766198573505,0.16986383,88250.0,88205.0,0.0113433]
[1766198573711,0.00568,88249.0,88226.0,0.0113407]
[1766198574005,0.00568,88249.0,88214.0,0.01144006]
[1766198574211,0.0113383,88246.0,88214.0,0.01144006]
[1766198574715,0.00017003,88239.0,88221.0,0.00017003]
[1766198575006,0.0113364,88260.0,88234.0,0.0113396]
[1766198575312,0.0113366,88258.0,88234.0,0.0113396]
[1766198575495,0.00152,88259.0,88221.0,0.00017003]
[1766198575699,0.16986383,88250.0,88221.0,0.00017003]
[1766198575900,0.00568,88249.0,88221.0,0.00017003]
[1766198577213,0.00568,88249.0,88226.0,0.0113406]
[1766198578310,0.0113379,88248.0,88226.0,0.0113406]
[1766198578510,0.00568,88249.0,88226.0,0.0113406]
[1766198579910,0.00568,88249.0,88221.0,0.00017003]
[1766198581115,0.00568,88249.0,88230.0,0.0113401]
[1766198582415,0.00568,88249.0,88226.0,0.0113407]
[1766198582911,0.00568,88249.0,88221.0,0.00017003]
[1766198584504,0.00568,88249.0,88230.0,0.0113402]
[1766198592217,0.00568,88249.0,88221.0,0.00017003]
[1766198593224,0.00568,88249.0,88230.0,0.0113401]
[1766198595315,0.06129573,88270.0,88221.0,0.00017003]
[1766198595516,0.06129573,88270.0,88219.0,0.00568]
[1766198595517,0.0113321,88293.0,88265.0,0.0113356]
[1766198595820,0.00356,88292.0,88270.0,0.00016991]
[1766198596119,0.16971839,88290.0,88251.0,0.00568]
[1766198596422,0.16971839,88280.0,88258.0,0.0113365]
[1766198596611,0.00568,88279.0,88254.0,0.0113371]
[1766198596916,0.00568,88279.0,88235.0,0.0113395]
[1766198596917,0.16971839,88270.0,88235.0,0.0113395]
[1766198597212,0.16971839,88270.0,88234.0,0.09454578]
[1766198597213,0.16971839,88260.0,88234.0,0.08922578]
[1766198597420,0.011337,88255.0,88238.0,0.00016991]
[1766198599315,0.011337,88255.0,88219.0,1.446]
[1766198599316,0.16971839,88250.0,88211.0,0.08140406]
[1766198599521,0.0113395,88236.0,88213.0,0.0113424]
[1766198599718,0.00568,88235.0,88212.0,0.0113425]
[1766198600318,0.00017001,88232.0,88215.0,0.00017001]
[1766198600524,0.00017001,88232.0,88215.0,0.01151201]
[1766198601421,0.0113319,88295.0,88266.0,0.0113355]
[1766198601625,1.44592,88305.0,88227.0,0.0567031]
[1766198601626,0.00356,88303.0,88267.0,0.00356]
[1766198601810,0.00356,88303.0,88260.0,0.31118991]
[1766198601811,0.00072,88309.0,88283.0,0.0113333]
[1766198602123,0.00072,88309.0,88287.0,0.0113328]
[1766198602329,0.0113275,88330.0,88293.0,0.011332]
[1766198602627,0.0113278,88327.0,88294.0,0.0113319]
[1766198602923,0.0006,88329.0,88298.0,0.0113314]
[1766198603115,0.0113276,88328.0,88298.0,0.0113314]
[1766198605323,0.0006,88329.0,88293.0,0.0006]
[1766198605324,0.0006,88329.0,88302.0,0.0113309]
[1766198605620,0.0006,88329.0,88307.0,0.0001699]
[1766198605825,0.0119276,88329.0,88301.0,0.0113311]
[1766198606726,0.0001699,88324.0,88306.0,0.0001699]
[1766198607528,0.0006,88329.0,88306.0,0.0017699]
[1766198607733,0.0006,88329.0,88314.0,0.0113293]
[1766198608326,0.00028,88341.0,88310.0,0.21179133]
[1766198608626,0.00028,88341.0,88309.0,0.01133]
[1766198609728,0.0113261,88340.0,88309.0,0.01133]
[1766198612219,0.0113267,88336.0,88310.0,0.00368]
[1766198612418,0.00568,88335.0,88310.0,0.00368]
[1766198616537,0.00568,88335.0,88311.0,0.0113297]
[1766198619138,0.00568,88335.0,88314.0,0.0113293]
[1766198620534,0.0113276,88329.0,88310.0,0.00476]
[1766198620838,0.011327,88334.0,88310.0,0.00476]
[1766198621341,0.16938393,88330.0,88310.0,0.17414393]
[1766198623040,0.16938393,88330.0,88310.0,0.00476]
[1766198623636,0.0113276,88328.0,88310.0,0.00476]
[1766198623835,0.0113279,88326.0,88310.0,0.00476]
[1766198624239,0.00568,88327.0,88310.0,0.00476]